[Event "Championnat d'Europe de Blitz"]
[Date "2024.12.09"]
[White "Baidetskyi, Valentin"]
[Black "Deac, Bogdan-Daniel"]
[WhiteElo "2519"]
[BlackElo "2696"]
[Round "7.5"]
[Result "1/2-1/2"]
[TimeControl "180+2"]

1. e4 {[%clk 00:03:03]} e5 {[%emt 00:00:02] [%clk 00:03:02]} 2. Nf3 {[%emt
00:00:04] [%clk 00:03:03]} Nc6 {[%clk 00:03:03]} 3. Bc4 {[%emt 00:00:02] [%clk
00:03:04]} Nf6 {[%emt 00:00:05] [%clk 00:03:00]} 4. d3 {[%emt 00:00:01] [%clk
00:03:05]} Be7 {[%emt 00:00:02] [%clk 00:02:59]} 5. O-O {[%emt 00:00:04] [%clk
00:03:03]} O-O {[%emt 00:00:03] [%clk 00:02:58]} 6. Re1 {[%emt 00:00:05] [%clk
00:03:00]} d6 {[%emt 00:00:07] [%clk 00:02:53]} 7. a4 {[%emt 00:00:01] [%clk
00:03:01]} a5 {[%emt 00:00:10] [%clk 00:02:45]} 8. Nbd2 {[%emt 00:00:07] [%clk
00:02:56]} Nd7 {[%emt 00:00:09] [%clk 00:02:38]} 9. Nf1 {[%emt 00:00:13] [%clk
00:02:46]} Nb6 {[%emt 00:00:47] [%clk 00:01:52]} 10. Bb3 {[%emt 00:00:02] [%clk
00:02:47]} Be6 {[%emt 00:00:01] [%clk 00:01:53]} 11. c3 {[%emt 00:00:10] [%clk
00:02:39]} Nd7 {[%emt 00:00:54] [%clk 00:01:00]} 12. d4 {[%emt 00:00:20] [%clk
00:02:22]} exd4 {[%emt 00:00:11] [%clk 00:00:51]} 13. cxd4 {[%emt 00:00:02]
[%clk 00:02:22]} Bg4 {[%emt 00:00:12] [%clk 00:00:41]} 14. Be3 {[%emt 00:00:05]
[%clk 00:02:19]} Bf6 {[%emt 00:00:03] [%clk 00:00:39]} 15. Ng3 {[%emt 00:00:20]
[%clk 00:02:01]} g6 {[%emt 00:00:17] [%clk 00:00:24]} 16. Qd2 {[%emt 00:00:16]
[%clk 00:01:47]} Bg7 {[%emt 00:00:11] [%clk 00:00:16]} 17. Ng5 {[%emt 00:00:12]
[%clk 00:01:37]} Nb6 {[%emt 00:00:01] [%clk 00:00:16]} 18. h3 {[%emt 00:00:09]
[%clk 00:01:31]} Bd7 {[%emt 00:00:01] [%clk 00:00:16]} 19. f4 {[%emt 00:00:05]
[%clk 00:01:28]} d5 {[%emt 00:00:06] [%clk 00:00:13]} 20. e5 {[%emt 00:00:09]
[%clk 00:01:20]} Nb4 {[%emt 00:00:02] [%clk 00:00:13]} 21. Qe2 {[%emt 00:00:15]
[%clk 00:01:07]} f6 {[%emt 00:00:07] [%clk 00:00:09]} 22. Nf3 {[%emt 00:00:01]
[%clk 00:01:07]} c6 {[%emt 00:00:05] [%clk 00:00:06]} 23. Bd2 {[%emt 00:00:04]
[%clk 00:01:05]} fxe5 {[%emt 00:00:02] [%clk 00:00:06]} 24. dxe5 {[%emt
00:00:09] [%clk 00:00:59]} Qe7 {[%emt 00:00:02] [%clk 00:00:06]} 25. Kh1 {[%emt
00:00:09] [%clk 00:00:52]} Rae8 {[%emt 00:00:02] [%clk 00:00:06]} 26. Ne4 {[%emt
00:00:09] [%clk 00:00:45]} Be6 {[%emt 00:00:03] [%clk 00:00:05]} 27. Nd6 {[%emt
00:00:02] [%clk 00:00:44]} Rb8 {[%emt 00:00:01] [%clk 00:00:07]} 28. Ng5 {[%emt
00:00:04] [%clk 00:00:42]} Nc8 {[%emt 00:00:02] [%clk 00:00:07]} 29. Nde4 {[%emt
00:00:16] [%clk 00:00:27]} Bf5 {[%emt 00:00:03] [%clk 00:00:06]} 30. g4 {[%emt
00:00:12] [%clk 00:00:18]} Bxe4+ {[%emt 00:00:02] [%clk 00:00:06]} 31. Nxe4
{[%emt 00:00:03] [%clk 00:00:17]} Nb6 {[%emt 00:00:03] [%clk 00:00:05]} 32. Rac1
{[%emt 00:00:04] [%clk 00:00:14]} Kh8 {[%emt 00:00:02] [%clk 00:00:06]} 33. Ng3
{[%emt 00:00:05] [%clk 00:00:11]} Rbe8 {[%emt 00:00:02] [%clk 00:00:06]} 34. Kg2
{[%clk 00:00:12]} Nd7 {[%emt 00:00:02] [%clk 00:00:06]} 35. Bc3 {[%emt 00:00:03]
[%clk 00:00:11]} Nc5 {[%clk 00:00:06]} 36. Bxb4 {[%emt 00:00:11] [%clk
00:00:03]} axb4 {[%emt 00:00:01] [%clk 00:00:07]} 37. Qe3 {[%emt 00:00:02] [%clk
00:00:03]} Nxb3 {[%emt 00:00:03] [%clk 00:00:06]} 38. Qxb3 {[%clk 00:00:04]}
Rxf4 {[%emt 00:00:01] [%clk 00:00:07]} 39. e6 {[%emt 00:00:03] [%clk 00:00:04]}
Rf6 {[%emt 00:00:01] [%clk 00:00:07]} 40. Rc2 {[%emt 00:00:04] [%clk 00:00:03]}
Rxe6 {[%emt 00:00:01] [%clk 00:00:07]} 41. Rxe6 {[%emt 00:00:02] [%clk
00:00:03]} Qxe6 {[%emt 00:00:01] [%clk 00:00:08]} 42. Qxb4 {[%clk 00:00:05]} Qd7
{[%emt 00:00:04] [%clk 00:00:06]} 43. a5 {[%emt 00:00:02] [%clk 00:00:06]} h6
{[%emt 00:00:01] [%clk 00:00:06]} 44. Rf2 {[%emt 00:00:05] [%clk 00:00:04]} Kh7
{[%clk 00:00:06]} 45. Qb3 {[%emt 00:00:02] [%clk 00:00:04]} Qe7 {[%emt 00:00:02]
[%clk 00:00:06]} 46. Qc2 {[%emt 00:00:02] [%clk 00:00:05]} Qe6 {[%emt 00:00:02]
[%clk 00:00:06]} 47. b4 {[%emt 00:00:03]} Re7 {[%emt 00:00:01] [%clk 00:00:05]}
48. Re2 {[%emt 00:00:03] [%clk 00:00:05]} Qd7 {[%emt 00:00:01] [%clk 00:00:06]}
49. Rf2 {[%emt 00:00:02] [%clk 00:00:05]} Qe6 {[%emt 00:00:02] [%clk 00:00:06]}
50. Re2 {[%clk 00:00:06]} Qd6 {[%emt 00:00:01] [%clk 00:00:06]} 51. Rxe7 {[%emt
00:00:04] [%clk 00:00:05]} Qxe7 {[%clk 00:00:07]} 52. Qd2 {[%emt 00:00:03] [%clk
00:00:03]} Qe5 {[%emt 00:00:04] [%clk 00:00:05]} 53. Ne2 {[%emt 00:00:02] [%clk
00:00:03]} Qe4+ {[%emt 00:00:02] [%clk 00:00:06]} 54. Kf2 {[%clk 00:00:04]} Bf8
{[%emt 00:00:02] [%clk 00:00:06]} 55. Nd4 {[%emt 00:00:05]} Bd6 {[%clk
00:00:05]} 56. Nc2 {[%emt 00:00:02] [%clk 00:00:04]} Be5 {[%emt 00:00:03] [%clk
00:00:04]} 57. Qe2 {[%emt 00:00:02] [%clk 00:00:04]} Qf4+ {[%emt 00:00:02] [%clk
00:00:04]} 58. Ke1 {[%emt 00:00:02] [%clk 00:00:03]} Kg7 {[%emt 00:00:02] [%clk
00:00:04]} 59. Kd1 {[%emt 00:00:02] [%clk 00:00:04]} Qg3 {[%clk 00:00:04]} 60.
Ne3 {[%emt 00:00:04] [%clk 00:00:03]} Qxh3 {[%emt 00:00:02] [%clk 00:00:04]} 61.
Nf5+ {[%clk 00:00:05]} Kf6 {[%emt 00:00:01] [%clk 00:00:05]} 62. Ne3 {[%emt
00:00:03] [%clk 00:00:04]} Qg3 {[%emt 00:00:01] [%clk 00:00:05]} 63. b5 {[%emt
00:00:03] [%clk 00:00:03]} cxb5 {[%emt 00:00:02] [%clk 00:00:05]} 64. Nxd5+
{[%emt 00:00:01] [%clk 00:00:04]} Kg5 {[%emt 00:00:01] [%clk 00:00:06]} 65. Ne3
{[%emt 00:00:04]} b4 {[%emt 00:00:02] [%clk 00:00:05]} 66. Kc2 {[%emt 00:00:02]
[%clk 00:00:04]} Qf4 {[%emt 00:00:01] [%clk 00:00:05]} 67. Qd3 {[%emt 00:00:02]
[%clk 00:00:04]} h5 {[%emt 00:00:03] [%clk 00:00:05]} 68. gxh5 {[%emt 00:00:01]
[%clk 00:00:05]} gxh5 {[%emt 00:00:01] [%clk 00:00:05]} 69. Kb3 {[%emt 00:00:03]
[%clk 00:00:04]} Qf7+ {[%emt 00:00:03] [%clk 00:00:04]} 70. Nc4 {[%emt 00:00:01]
[%clk 00:00:05]} Bf4 {[%emt 00:00:02] [%clk 00:00:04]} 71. Qd8+ {[%emt 00:00:03]
[%clk 00:00:04]} Kg4 {[%emt 00:00:02] [%clk 00:00:04]} 72. Qd4 {[%emt 00:00:03]
[%clk 00:00:05]} h4 {[%emt 00:00:01] [%clk 00:00:04]} 73. Kxb4 {[%clk 00:00:06]}
Qe7+ {[%emt 00:00:01] [%clk 00:00:04]} 74. Kb5 {[%emt 00:00:02] [%clk 00:00:07]}
h3 {[%emt 00:00:01] [%clk 00:00:04]} 75. Qd5 {[%emt 00:00:04] [%clk 00:00:05]}
h2 {[%emt 00:00:01] [%clk 00:00:04]} 76. Kb6 {[%emt 00:00:05] [%clk 00:00:03]}
Qc7+ {[%emt 00:00:02] [%clk 00:00:04]} 77. Ka7 {[%emt 00:00:02] [%clk 00:00:03]}
Qc6 {[%emt 00:00:01] [%clk 00:00:04]} 78. Qg8+ {[%emt 00:00:02] [%clk 00:00:03]}
Kh4 {[%emt 00:00:01] [%clk 00:00:05]} 79. Qh7+ {[%emt 00:00:01] [%clk 00:00:04]}
Kg3 {[%emt 00:00:01] [%clk 00:00:05]} 80. Nb6 {[%emt 00:00:03] [%clk 00:00:04]}
Qg2 {[%emt 00:00:02] [%clk 00:00:05]} 81. Qg6+ {[%emt 00:00:01] [%clk 00:00:05]}
Kf2 {[%emt 00:00:02] [%clk 00:00:05]} 82. Qc2+ {[%emt 00:00:01] [%clk 00:00:06]}
Kf3 {[%emt 00:00:02] [%clk 00:00:05]} 83. Qd3+ {[%emt 00:00:03] [%clk 00:00:05]}
Be3 {[%emt 00:00:03]} 84. Qd5+ {[%emt 00:00:02] [%clk 00:00:03]} Kf2 {[%emt
00:00:02] [%clk 00:00:06]} 85. Qf5+ {[%clk 00:00:04]} Kg1 {[%emt 00:00:03] [%clk
00:00:05]} 86. Qb1+ {[%emt 00:00:01] [%clk 00:00:05]} Kf2 {[%emt 00:00:02] [%clk
00:00:04]} 87. Qc2+ {[%emt 00:00:01] [%clk 00:00:06]} Kf3 {[%emt 00:00:02] [%clk
00:00:04]} 88. Qf5+ {[%emt 00:00:02] [%clk 00:00:06]} Ke2 {[%clk 00:00:05]} 89.
Qc2+ {[%emt 00:00:02] [%clk 00:00:07]} Bd2 {[%clk 00:00:05]} 90. Qc4+ {[%emt
00:00:03] [%clk 00:00:06]} Ke1 {[%clk 00:00:06]} 91. Qe6+ {[%emt 00:00:03] [%clk
00:00:05]} Qe2 {[%emt 00:00:03] [%clk 00:00:05]} 92. Qd5 {[%emt 00:00:02] [%clk
00:00:05]} Qf2 {[%emt 00:00:04] [%clk 00:00:04]} 93. Kxb7 {[%emt 00:00:03] [%clk
00:00:04]} Kf1 {[%emt 00:00:02] [%clk 00:00:04]} 94. a6 {[%emt 00:00:02] [%clk
00:00:04]} Qg2 {[%emt 00:00:02] [%clk 00:00:04]} 95. a7 {[%emt 00:00:04] [%clk
00:00:03]} Qxd5+ {[%emt 00:00:02] [%clk 00:00:03]} 96. Nxd5 {[%emt 00:00:02]
[%clk 00:00:03]} h1=Q {[%emt 00:00:02]} 97. a8=Q {[%clk 00:00:04]} Qxd5+ {[%emt
00:00:02] [%clk 00:00:03]} 98. Kb8 {[%emt 00:00:01] [%clk 00:00:04]} Bf4+ {[%emt
00:00:02] [%clk 00:00:04]} 99. Ka7 {[%emt 00:00:01]} Be3+ {[%clk 00:00:04]} 100.
Kb8 {[%clk 00:00:06]} Qd6+ {[%clk 00:00:05]} 101. Kb7 {[%emt 00:00:02] [%clk
00:00:07]} Qd7+ {[%emt 00:00:02] [%clk 00:00:04]} 102. Ka6 {[%emt 00:00:04]}
Qa4+ {[%emt 00:00:02] [%clk 00:00:03]} 103. Kb7 {[%emt 00:00:02]} Qe4+ {[%clk
00:00:04]} 104. Kb8 {[%emt 00:00:02] [%clk 00:00:08]} Bf4+ {[%emt 00:00:01]
[%clk 00:00:04]} 105. Ka7 {[%emt 00:00:02] [%clk 00:00:09]} Qa4+ {[%clk
00:00:05]} 106. Kb7 {[%emt 00:00:01] [%clk 00:00:09]} Qb5+ {[%emt 00:00:02]
[%clk 00:00:05]} 107. Kc8 {[%emt 00:00:02] [%clk 00:00:09]} Qe8+ {[%emt
00:00:01] [%clk 00:00:05]} 108. Kb7 {[%emt 00:00:02] [%clk 00:00:11]} Qd7+
{[%emt 00:00:02] [%clk 00:00:05]} 109. Ka6 {[%clk 00:00:11]} Qa4+ {[%emt
00:00:02] [%clk 00:00:06]} 110. Kb7 {[%emt 00:00:01] [%clk 00:00:12]} Qb4+
{[%emt 00:00:02] [%clk 00:00:06]} 111. Ka6 {[%emt 00:00:03] [%clk 00:00:10]}
Qa4+ {[%emt 00:00:03] [%clk 00:00:05]} 112. Kb7 {[%emt 00:00:02] [%clk
00:00:11]} Qb3+ {[%clk 00:00:06]} 113. Ka6 {[%emt 00:00:02] [%clk 00:00:11]}
Qc4+ {[%emt 00:00:01] [%clk 00:00:06]} 114. Kb7 {[%emt 00:00:03] [%clk
00:00:11]} Qb4+ {[%emt 00:00:03] [%clk 00:00:05]} 115. Ka6 {[%emt 00:00:01]
[%clk 00:00:11]} Qd6+ {[%clk 00:00:06]} 116. Kb7 {[%emt 00:00:07] [%clk
00:00:06]} Qc7+ {[%emt 00:00:02] [%clk 00:00:06]} 117. Ka6 {[%emt 00:00:02]
[%clk 00:00:07]} Qc4+ {[%emt 00:00:01] [%clk 00:00:07]} 118. Kb7 {[%emt
00:00:03] [%clk 00:00:05]} Qb5+ {[%emt 00:00:04] [%clk 00:00:05]} 119. Kc8
{[%emt 00:00:02] [%clk 00:00:06]} Kf2 {[%emt 00:00:01] [%clk 00:00:05]} 120. Qe4
{[%emt 00:00:05] [%clk 00:00:03]} Qc5+ {[%emt 00:00:02] [%clk 00:00:05]} 121.
Kd7 {[%emt 00:00:01] [%clk 00:00:04]} Qd6+ {[%clk 00:00:06]} 122. Ke8 {[%emt
00:00:02]} Be5 {[%emt 00:00:03] [%clk 00:00:05]} 123. Qf5+ {[%emt 00:00:02]
[%clk 00:00:05]} Ke3 {[%emt 00:00:02] [%clk 00:00:05]} 124. Kf7 {[%clk
00:00:06]} Qc7+ {[%emt 00:00:03] [%clk 00:00:04]} 125. Kg6 {[%emt 00:00:02]
[%clk 00:00:07]} Qg7+ {[%emt 00:00:02] [%clk 00:00:04]} 126. Kh5 {[%emt
00:00:01] [%clk 00:00:07]} Qe7 {[%emt 00:00:02] [%clk 00:00:05]} 127. Qg5+
{[%emt 00:00:01] [%clk 00:00:08]} Qxg5+ {[%emt 00:00:02] [%clk 00:00:05]} 128.
Kxg5 {[%clk 00:00:09]} 1/2-1/2

[Site "Europe Echecs"]

[Event "Championnat d'Europe de Blitz"]
[Date "2024.12.09"]
[White "Mamedov, Rauf"]
[Black "Djukic, Nikola"]
[WhiteElo "2656"]
[BlackElo "2493"]
[Round "7.6"]
[Result "1-0"]
[TimeControl "180+2"]

1. e4 {[%clk 00:03:04]} c5 {[%emt 00:00:02] [%clk 00:03:03]} 2. Nf3 {[%emt
00:00:01] [%clk 00:03:04]} d6 {[%emt 00:00:04] [%clk 00:03:04]} 3. Nc3 {[%clk
00:03:05]} Nc6 {[%clk 00:03:04]} 4. g3 {[%emt 00:00:01] [%clk 00:03:06]} g6
{[%clk 00:03:05]} 5. Bg2 {[%clk 00:03:07]} Bg7 {[%clk 00:03:06]} 6. d3 {[%clk
00:03:08]} e6 {[%emt 00:00:05] [%clk 00:03:04]} 7. O-O {[%emt 00:00:02] [%clk
00:03:08]} Nge7 {[%clk 00:03:05]} 8. Be3 {[%emt 00:00:02] [%clk 00:03:09]} Nd4
{[%emt 00:00:01] [%clk 00:03:06]} 9. Rb1 {[%emt 00:00:01] [%clk 00:03:10]} e5
{[%emt 00:00:16] [%clk 00:02:51]} 10. Nd2 {[%emt 00:00:35] [%clk 00:02:37]} O-O
{[%emt 00:00:03] [%clk 00:02:50]} 11. a3 {[%emt 00:00:08] [%clk 00:02:31]} Be6
{[%emt 00:00:11] [%clk 00:02:41]} 12. Nd5 {[%emt 00:00:04] [%clk 00:02:29]} Nxd5
{[%emt 00:00:09] [%clk 00:02:33]} 13. exd5 {[%emt 00:00:02] [%clk 00:02:30]} Bd7
{[%clk 00:02:34]} 14. b4 {[%emt 00:00:04] [%clk 00:02:29]} b6 {[%emt 00:00:07]
[%clk 00:02:29]} 15. bxc5 {[%emt 00:00:02] [%clk 00:02:29]} bxc5 {[%emt
00:00:01] [%clk 00:02:30]} 16. Nc4 {[%emt 00:00:04] [%clk 00:02:27]} Qc7 {[%emt
00:00:04] [%clk 00:02:28]} 17. Bd2 {[%emt 00:00:02] [%clk 00:02:27]} Bb5 {[%emt
00:00:42] [%clk 00:01:48]} 18. Ba5 {[%emt 00:00:32] [%clk 00:01:57]} Qd7 {[%emt
00:00:01] [%clk 00:01:48]} 19. c3 {[%clk 00:01:58]} Ba4 {[%clk 00:01:50]} 20.
Qd2 {[%emt 00:01:15] [%clk 00:00:46]} Nb3 {[%emt 00:00:02] [%clk 00:01:50]} 21.
Qa2 {[%clk 00:00:47]} Rab8 {[%emt 00:00:13] [%clk 00:01:39]} 22. Rb2 {[%emt
00:00:03] [%clk 00:00:46]} Rb5 {[%emt 00:00:13] [%clk 00:01:28]} 23. Rfb1 {[%emt
00:00:02] [%clk 00:00:45]} Rfb8 {[%emt 00:00:02] [%clk 00:01:29]} 24. Bf3 {[%emt
00:00:01] [%clk 00:00:46]} Nxa5 {[%emt 00:00:29] [%clk 00:01:03]} 25. Nxa5
{[%emt 00:00:01] [%clk 00:00:46]} e4 {[%emt 00:00:05] [%clk 00:00:59]} 26. Bxe4
{[%emt 00:00:26] [%clk 00:00:23]} Bxc3 {[%emt 00:00:01] [%clk 00:00:59]} 27.
Rxb5 {[%clk 00:00:24]} Rxb5 {[%emt 00:00:04] [%clk 00:00:57]} 28. Nc6 {[%clk
00:00:26]} Bf6 {[%emt 00:00:45] [%clk 00:00:14]} 29. Rxb5 {[%emt 00:00:04] [%clk
00:00:24]} Bxb5 {[%clk 00:00:15]} 30. a4 {[%emt 00:00:01] [%clk 00:00:25]} Ba6
{[%emt 00:00:05] [%clk 00:00:12]} 31. h4 {[%emt 00:00:04] [%clk 00:00:23]} h5
{[%clk 00:00:12]} 32. Qb3 {[%emt 00:00:06] [%clk 00:00:19]} Qc7 {[%emt 00:00:01]
[%clk 00:00:13]} 33. a5 {[%emt 00:00:02] [%clk 00:00:20]} Kg7 {[%emt 00:00:01]
[%clk 00:00:14]} 34. Kg2 {[%emt 00:00:06] [%clk 00:00:16]} Bc8 {[%emt 00:00:02]
[%clk 00:00:13]} 35. Qb5 {[%emt 00:00:04] [%clk 00:00:15]} Bd7 {[%emt 00:00:02]
[%clk 00:00:13]} 36. Qa6 {[%emt 00:00:03] [%clk 00:00:14]} Bxc6 {[%emt 00:00:03]
[%clk 00:00:12]} 37. dxc6 {[%clk 00:00:15]} Bc3 {[%emt 00:00:02] [%clk
00:00:13]} 38. Qc4 {[%emt 00:00:08] [%clk 00:00:09]} Bxa5 {[%emt 00:00:03] [%clk
00:00:12]} 39. Bd5 {[%clk 00:00:10]} Qe7 {[%emt 00:00:02] [%clk 00:00:13]} 40.
Qa2 {[%emt 00:00:02] [%clk 00:00:10]} Bb6 {[%clk 00:00:14]} 41. Qb2+ {[%emt
00:00:02] [%clk 00:00:10]} Qf6 {[%emt 00:00:02] [%clk 00:00:15]} 42. Qxb6 {[%emt
00:00:05] [%clk 00:00:06]} axb6 {[%emt 00:00:02] [%clk 00:00:15]} 43. c7 {[%clk
00:00:07]} Qf5 {[%emt 00:00:08] [%clk 00:00:08]} 44. Bb7 {[%clk 00:00:09]} Qxd3
{[%emt 00:00:03] [%clk 00:00:07]} 45. c8=Q {[%clk 00:00:10]} b5 {[%emt 00:00:02]
[%clk 00:00:08]} 46. Ba6 {[%emt 00:00:06] [%clk 00:00:06]} Qd5+ {[%emt 00:00:01]
[%clk 00:00:08]} 47. Kh2 {[%clk 00:00:08]} Qf3 {[%emt 00:00:03] [%clk 00:00:07]}
48. Kg1 {[%emt 00:00:03] [%clk 00:00:07]} b4 {[%clk 00:00:08]} 49. Qb8 {[%emt
00:00:01] [%clk 00:00:08]} Qf6 {[%emt 00:00:03] [%clk 00:00:07]} 50. Bc4 {[%emt
00:00:02] [%clk 00:00:08]} Qd4 {[%emt 00:00:01] [%clk 00:00:08]} 51. Bf1 {[%emt
00:00:03] [%clk 00:00:07]} Qd5 {[%emt 00:00:02] [%clk 00:00:08]} 52. Qb5 {[%clk
00:00:08]} Qd4 {[%emt 00:00:04] [%clk 00:00:06]} 53. Bc4 {[%emt 00:00:05] [%clk
00:00:05]} d5 {[%emt 00:00:01] [%clk 00:00:07]} 54. Bf1 {[%clk 00:00:06]} Qc3
{[%emt 00:00:02] [%clk 00:00:07]} 55. Qd7 {[%emt 00:00:01] [%clk 00:00:07]} Qd4
{[%emt 00:00:02] [%clk 00:00:07]} 56. Qb5 {[%emt 00:00:01] [%clk 00:00:08]} Qc3
{[%emt 00:00:02] [%clk 00:00:06]} 57. Qd7 {[%clk 00:00:09]} Qd4 {[%emt 00:00:03]
[%clk 00:00:06]} 58. Qb5 {[%emt 00:00:01] [%clk 00:00:10]} 1-0

[Site "Europe Echecs"]

[Event "Championnat d'Europe de Blitz"]
[Date "2024.12.09"]
[White "Fressinet, Laurent"]
[Black "Smeets, Jan"]
[WhiteElo "2588"]
[BlackElo "2552"]
[Round "7.7"]
[Result "1-0"]
[TimeControl "180+2"]

1. Nf3 {[%clk 00:03:03]} d5 {[%emt 00:00:02] [%clk 00:03:03]} 2. g3 {[%clk
00:03:03]} Nf6 {[%emt 00:00:07] [%clk 00:02:59]} 3. Bg2 {[%clk 00:03:04]} b5
{[%emt 00:00:01] [%clk 00:03:00]} 4. O-O {[%emt 00:00:09] [%clk 00:02:57]} e6
{[%emt 00:00:02] [%clk 00:03:01]} 5. d3 {[%emt 00:00:01] [%clk 00:02:57]} Bb7
{[%emt 00:00:08] [%clk 00:02:55]} 6. e4 {[%emt 00:00:10] [%clk 00:02:49]} Be7
{[%emt 00:00:12] [%clk 00:02:45]} 7. Nbd2 {[%emt 00:00:11] [%clk 00:02:40]} O-O
{[%emt 00:00:11] [%clk 00:02:36]} 8. a4 {[%emt 00:00:01] [%clk 00:02:41]} a6
{[%emt 00:00:18] [%clk 00:02:20]} 9. Re1 {[%emt 00:00:07] [%clk 00:02:36]} c5
{[%emt 00:00:03] [%clk 00:02:19]} 10. exd5 {[%emt 00:00:11] [%clk 00:02:26]}
Nxd5 {[%emt 00:00:12] [%clk 00:02:09]} 11. Ne4 {[%emt 00:00:09] [%clk 00:02:20]}
Nc6 {[%emt 00:00:10] [%clk 00:02:01]} 12. Bg5 {[%emt 00:00:11] [%clk 00:02:10]}
f6 {[%emt 00:00:16] [%clk 00:01:48]} 13. Bd2 {[%emt 00:00:03] [%clk 00:02:09]}
Re8 {[%emt 00:00:13] [%clk 00:01:37]} 14. c3 {[%emt 00:00:01] [%clk 00:02:09]}
Bf8 {[%emt 00:00:14] [%clk 00:01:26]} 15. Qb3 {[%emt 00:00:12] [%clk 00:01:59]}
Na5 {[%emt 00:00:17] [%clk 00:01:11]} 16. Qc2 {[%emt 00:00:09] [%clk 00:01:52]}
c4 {[%emt 00:00:08] [%clk 00:01:05]} 17. dxc4 {[%emt 00:00:13] [%clk 00:01:41]}
Nxc4 {[%emt 00:00:10] [%clk 00:00:57]} 18. Rad1 {[%emt 00:00:04] [%clk
00:01:39]} Nxd2 {[%emt 00:00:03] [%clk 00:00:56]} 19. Rxd2 {[%emt 00:00:04]
[%clk 00:01:36]} Qb6 {[%emt 00:00:10] [%clk 00:00:49]} 20. Rde2 {[%emt 00:00:14]
[%clk 00:01:24]} Rac8 {[%emt 00:00:05] [%clk 00:00:46]} 21. axb5 {[%emt
00:00:07] [%clk 00:01:19]} axb5 {[%emt 00:00:01] [%clk 00:00:48]} 22. Qb3 {[%emt
00:00:01] [%clk 00:01:19]} Ba6 {[%emt 00:00:33] [%clk 00:00:17]} 23. Ned2 {[%emt
00:00:10] [%clk 00:01:10]} b4 {[%emt 00:00:14] [%clk 00:00:06]} 24. Rxe6 {[%emt
00:00:05] [%clk 00:01:07]} Rxe6 {[%emt 00:00:01] [%clk 00:00:06]} 25. Qxd5
{[%emt 00:00:03] [%clk 00:01:07]} Rce8 {[%emt 00:00:02] [%clk 00:00:06]} 26. Nd4
{[%emt 00:00:19] [%clk 00:00:50]} Bc8 {[%emt 00:00:02] [%clk 00:00:06]} 27. Bh3
{[%emt 00:00:08] [%clk 00:00:43]} Kf7 {[%emt 00:00:07] [%clk 00:00:00]} 1-0

[Site "Europe Echecs"]